bitfinex/quotes_ETHUSD_20240621
["timestamp","ask_amount","ask_price","bid_price","bid_amount"]
[1718981939430,2.27501,3516.5,3516.0,2.27531]
[1718981939580,2.27501,3516.5,3516.2,2.27517]
[1718981940277,2.27499,3516.5,3516.1,2.27523]
[1718981940632,2.27499,3516.5,3516.2,2.27518]
[1718981941322,3.0,3516.7,3516.2,2.27518]
[1718981941623,2.27488,3516.7,3516.3,2.2751]
[1718981941829,2.27488,3516.7,3516.4,2.27504]
[1718981942407,2.27473,3516.9,3516.5,2.27498]
[1718981943421,2.27465,3517.1,3516.7,2.27485]
[1718981943628,2.27474,3516.9,3516.5,2.27493]
[1718981943800,2.27449,3517.3,3516.3,2.27511]
[1718981944130,2.27467,3517.0,3516.6,2.27486]
[1718981944418,3.0,3517.3,3516.5,2.27497]
[1718981944620,2.27448,3517.3,3516.9,2.27469]
[1718981944837,5.27434,3517.5,3517.2,2.27447]
[1718981945038,2.27414,3517.8,3517.4,2.2744]
[1718981945184,2.27423,3517.7,3517.4,2.2744]
[1718981945387,3.0,3517.7,3517.3,2.27445]
[1718981945618,2.27422,3517.7,3517.3,2.27443]
[1718981946503,2.27427,3517.6,3517.3,2.27443]
[1718981946830,5.27415,3517.8,3517.3,2.27443]
[1718981947141,2.27422,3517.7,3517.3,2.27443]
[1718981948199,2.27422,3517.7,3517.4,2.2744]
[1718981949748,2.27427,3517.6,3517.3,2.27446]
[1718981950338,2.27415,3517.8,3517.5,2.27434]
[1718981952860,2.27422,3517.7,3517.3,2.27445]
[1718981953144,2.27422,3517.7,3517.4,2.27438]
[1718981953447,2.27423,3517.7,3517.3,2.27441]
[1718981953632,2.27423,3517.7,3517.4,2.27438]
[1718981955262,2.27423,3517.7,3517.3,2.27441]
[1718981955545,2.27423,3517.7,3517.2,2.27448]
[1718981955546,2.27429,3517.6,3517.2,2.27448]
[1718981955957,4.37192,3518.2,3516.5,2.27493]
[1718981956170,4.37192,3518.2,3516.9,2.27471]
[1718981956171,2.27454,3517.2,3516.9,2.27471]
[1718981956466,2.27423,3517.7,3516.4,2.27502]
[1718981956467,2.27469,3517.0,3516.4,2.27502]
[1718981956614,2.27422,3517.7,3516.8,2.27478]
[1718981956615,2.27435,3517.5,3516.8,2.27478]
[1718981956962,2.27435,3517.5,3516.5,2.27498]
[1718981956963,2.27448,3517.3,3516.9,2.27472]
[1718981957261,2.6641,3518.1,3516.7,2.27483]
[1718981957469,2.27415,3517.8,3517.5,2.27432]
[1718981957617,2.6641,3518.1,3517.4,2.27435]
[1718981957618,4.93806,3518.1,3517.7,2.27414]
[1718981957815,2.27396,3518.1,3517.7,2.27414]
[1718981958319,2.27408,3517.9,3517.6,2.27427]
[1718981958942,2.27408,3517.9,3517.5,2.27434]
[1718981959255,2.27403,3518.0,3517.6,2.27422]
[1718981959551,2.27432,3517.6,3517.2,2.27447]
[1718981959719,2.27409,3517.9,3517.3,2.27441]
[1718981959919,2.27422,3517.7,3517.3,2.27441]
[1718981960122,2.27415,3517.8,3517.4,2.27435]
[1718981960335,2.27397,3518.1,3517.7,2.27416]
[1718981960751,2.27402,3518.0,3517.7,2.27416]
[1718981960955,2.27397,3518.1,3517.8,2.27414]
[1718981961368,2.27402,3518.0,3517.7,2.2742]
[1718981961536,2.27391,3518.2,3517.6,2.27421]
[1718981961741,2.27396,3518.1,3517.8,2.27414]
[1718981961936,2.27396,3518.1,3517.6,2.27421]
[1718981962141,2.27403,3518.0,3517.7,2.27421]
[1718981962672,2.27408,3517.9,3517.6,2.27426]
[1718981963951,2.27396,3518.1,3517.8,2.27411]
[1718981964285,5.27384,3518.3,3518.0,2.27401]
[1718981964444,3.0,3518.2,3518.0,2.27401]
[1718981964644,2.27366,3518.6,3517.8,2.27411]
[1718981964847,2.7658133,3518.5,3518.1,2.27392]
[1718981965169,2.27374,3518.5,3518.1,2.27392]
[1718981965357,3.0,3518.7,3517.9,2.5697112]
[1718981965358,2.27377,3518.4,3517.9,2.5697112]
[1718981965566,2.27388,3518.3,3517.9,0.2956412]
[1718981965770,2.27377,3518.4,3518.0,2.27401]
[1718981966149,2.27387,3518.3,3518.0,2.274]
[1718981966349,2.27383,3518.3,3518.0,2.27401]
[1718981966785,2.27377,3518.4,3518.0,2.27401]
[1718981966959,2.2737,3518.5,3518.0,2.27401]
[1718981967157,2.2737,3518.5,3518.2,2.27388]
[1718981967357,2.2737,3518.5,3518.1,2.27393]
[1718981967788,2.27358,3518.7,3518.4,2.27372]
[1718981967948,2.27351,3518.8,3518.3,2.27381]
[1718981968277,2.27364,3518.6,3518.3,2.27381]
[1718981968691,2.27364,3518.6,3518.1,2.75829812]
[1718981968857,2.27364,3518.6,3518.3,2.27382]
[1718981969058,2.27364,3518.6,3518.1,2.75829812]
[1718981969059,2.27351,3518.8,3518.1,0.48435812]
[1718981969262,0.49203876,3518.7,3518.1,0.48435812]
[1718981969460,2.27374,3518.5,3518.2,2.27388]
[1718981969666,2.27374,3518.5,3517.8,2.2741]
[1718981969982,0.49206784,3518.4,3517.8,2.2741]
[1718981970197,2.27374,3518.5,3518.0,2.27401]
[1718981970492,2.27389,3518.2,3517.9,2.27407]
[1718981971891,2.27383,3518.3,3518.0,2.274]
[1718981972080,2.27376,3518.4,3518.0,2.27396]
[1718981972255,2.27384,3518.3,3518.0,2.27396]
[1718981972952,1.94084,3518.3,3518.1,2.27395]
[1718981973555,1.94084,3518.3,3518.0,2.27401]
[1718981973758,2.27377,3518.4,3518.1,2.27394]
[1718981974180,2.27384,3518.3,3518.0,2.27401]
[1718981974363,2.27389,3518.2,3517.9,2.27406]
[1718981974894,2.27384,3518.3,3518.0,2.27401]
[1718981975194,2.27384,3518.3,3517.6,2.27423]
[1718981975195,2.27408,3517.9,3517.6,2.27423]
[1718981975352,2.27408,3517.9,3517.3,2.972015]
[1718981975353,2.518,3518.4,3517.3,2.27446]
[1718981975711,2.27418,3517.8,3516.8,0.227483]
[1718981975854,2.27435,3517.5,3517.1,2.27455]
[1718981976288,2.2744,3517.4,3517.0,2.27465]
[1718981976516,2.2744,3517.4,3517.1,2.27459]
[1718981976897,2.2744,3517.4,3517.0,2.27465]
[1718981977399,2.27448,3517.3,3517.0,2.27465]
[1718981977588,4.54886,3517.4,3517.0,2.27465]
[1718981978089,2.27421,3517.7,3517.3,2.27442]
[1718981978289,1.79312212,3517.6,3517.2,2.27452]
[1718981978498,2.27414,3517.8,3517.3,0.55127733]
[1718981978700,4.06728791,3517.7,3517.3,2.27446]
[1718981978917,0.4921539,3517.6,3517.4,2.27438]
[1718981979228,2.27416,3517.8,3517.4,2.27438]
[1718981979522,2.27427,3517.6,3517.1,2.27453]
[1718981979819,2.27434,3517.5,3517.1,2.84855163]
[1718981980189,2.27434,3517.5,3517.2,2.27452]
[1718981980615,2.27429,3517.6,3517.2,2.27452]
[1718981981288,1.30096336,3517.5,3517.2,2.27452]
[1718981982828,3.57530336,3517.5,3516.9,2.27467]
[1718981982995,1.79315388,3517.4,3516.9,3.0108043]
[1718981983191,1.30096336,3517.3,3517.1,2.27458]
[1718981983948,4.75309,3518.1,3517.6,2.27423]
[1718981984099,1.79294194,3518.0,3517.5,2.27433]
[1718981984295,1.79294194,3517.9,3517.6,2.27426]
[1718981984493,2.27403,3518.0,3517.5,2.27433]
[1718981984494,1.79294194,3517.8,3517.5,2.27432]
[1718981984692,1.79292923,3517.7,3517.5,2.27432]
[1718981985029,1.30081249,3517.6,3517.5,2.27432]
[1718981985236,1.30081249,3517.7,3517.5,2.27432]
[1718981985722,1.30081249,3517.6,3517.5,2.27432]
[1718981985921,1.30081249,3517.8,3517.5,2.27432]
[1718981986130,0.49213347,3517.7,3517.5,2.27432]
[1718981986425,1.79294736,3517.6,3517.5,4.54866]
[1718981986631,1.79294957,3517.6,3517.5,4.54866]
[1718981986835,1.30081249,3517.6,3517.5,7.505317]
[1718981987040,1.30086326,3518.1,3517.8,2.27408]
[1718981987202,0.49209286,3518.0,3517.8,2.27409]
[1718981987419,1.30084531,3517.9,3517.8,2.27409]
[1718981987743,1.30098013,3518.1,3517.9,2.27407]
[1718981987912,2.27378,3518.4,3518.0,2.27396]
[1718981988093,1.7929093,3518.3,3518.0,2.27396]
[1718981988294,1.7929093,3518.2,3518.0,2.27396]
[1718981988598,1.30086161,3518.1,3518.0,2.80382527]
[1718981988796,2.27378,3518.4,3518.1,2.27393]
[1718981989048,1.79307783,3518.3,3518.2,2.27389]
[1718981990208,1.30102492,3518.3,3518.2,5.28294853]
[1718981990413,2.08503145,3518.7,3518.4,2.27371]
[1718981990653,1.7928984,3518.6,3518.4,2.27371]
[1718981990802,1.7928984,3518.5,3518.4,2.27371]
[1718981991001,1.79290502,3518.5,3518.4,2.27371]
[1718981993553,1.30089007,3518.5,3518.4,2.27371]
[1718981993699,1.79290032,3518.5,3518.4,2.27371]
[1718981994792,1.79290032,3518.5,3518.3,2.27381]
[1718981995000,4.35965184,3518.7,3518.4,2.27375]
[1718981995200,1.79309295,3518.6,3518.4,2.27375]
[1718981995438,1.79309295,3518.5,3517.9,2.27408]
[1718981995632,3.57488229,3518.4,3517.9,2.27406]
[1718981995838,3.57494229,3518.3,3517.8,2.27413]
[1718981996053,4.35969184,3518.6,3517.7,2.2742]
[1718981996054,1.30107229,3518.2,3517.7,2.2742]
[1718981996199,1.30107229,3518.1,3517.9,2.27408]
[1718981996404,1.30107229,3518.0,3517.9,2.27408]
[1718981996639,2.27389,3518.2,3517.9,2.27408]
[1718981996837,1.30111938,3518.1,3517.9,2.27408]
[1718981997029,1.30111938,3518.1,3518.0,2.27401]
[1718981997224,1.30111938,3518.1,3517.8,2.27409]
[1718981997398,4.35978537,3518.4,3517.9,2.27402]
[1718981997399,1.30111938,3518.0,3517.9,2.27402]
[1718981997820,2.27384,3518.3,3517.9,2.27402]
[1718981997821,1.30111938,3518.2,3517.9,2.27402]
[1718981998441,3.57500938,3518.2,3517.9,2.27402]
[1718981998641,1.30111938,3518.1,3518.0,2.27401]
[1718981998875,2.2737,3518.5,3518.2,2.27389]
[1718981999180,1.79299279,3518.4,3518.2,2.27389]
[1718981999387,1.30095347,3518.3,3518.2,2.27389]
[1718981999869,2.27357,3518.7,3518.3,2.27382]
[1718981999870,1.30095347,3518.4,3518.3,2.27382]
[1718982000055,4.35949972,3518.7,3518.4,2.27375]
[1718982000386,3.87896038,3518.6,3517.9,2.78496357]
[1718982000530,1.793039,3518.5,3518.2,2.27384]
[1718982000727,1.793039,3518.4,3517.9,2.27407]
[1718982000931,1.793039,3518.3,3518.1,2.2739]
[1718982001228,2.08592138,3518.5,3518.1,4.54785]
[1718982001229,1.30101426,3518.2,3518.1,4.54785]
[1718982001432,2.4774,3518.7,3518.5,2.27369]
[1718982001433,2.08592138,3518.7,3518.5,2.27369]
[1718982001630,2.08592138,3518.7,3518.6,4.54726]
[1718982001834,2.08577216,3518.9,3518.7,2.27352]
[1718982002066,2.08577216,3518.9,3518.1,3.072885]
[1718982002067,2.08577216,3519.0,3518.9,2.27343]
[1718982002279,2.08577216,3519.0,3518.2,2.27382]
[1718982002280,1.30068606,3519.0,3518.2,2.27382]
[1718982002459,1.30068606,3518.9,3518.3,0.7620665]
[1718982002643,4.35895216,3519.3,3518.9,2.27339]
[1718982002865,1.79260239,3519.2,3518.6,2.27358]
[1718982003041,2.27359,3518.7,3518.2,2.27387]
[1718982003253,1.30066688,3518.6,3518.4,2.27376]
[1718982003568,2.27344,3518.9,3518.4,2.27376]
[1718982003569,1.30066688,3518.5,3518.4,2.27376]
[1718982003733,1.30066688,3518.6,3518.5,2.27369]
[1718982003935,2.08577216,3519.2,3518.7,2.27356]
[1718982004181,2.08577216,3520.1,3519.8,2.2728]
[1718982004335,1.79245203,3520.0,3519.0,4.37137]
[1718982004536,2.27228,3520.7,3520.3,2.27247]
[1718982004787,1.30026775,3520.6,3520.4,2.27246]
[1718982004958,1.30026775,3520.5,3520.4,2.27246]
[1718982006279,0.98407771,3521.1,3521.0,2.27208]
[1718982006792,0.98407771,3521.1,3521.0,4.54416]
[1718982007142,2.27208,3521.0,3520.6,2.27233]
[1718982007384,2.27208,3521.0,3519.9,2.591]
[1718982007385,2.27214,3520.9,3519.9,2.591]
[1718982007696,2.27221,3520.8,3520.3,2.27252]
[1718982007842,2.27208,3521.0,3520.3,2.27252]
[1718982008044,3.25608771,3521.1,3519.9,2.27279]
[1718982008353,0.98407771,3521.1,3520.3,2.5448]
[1718982008987,2.2721,3521.0,3520.4,2.27241]
[1718982009141,2.2721,3521.0,3520.6,2.27233]
[1718982009551,0.98407771,3521.1,3520.9,2.27212]
[1718982009857,0.98407771,3521.1,3520.7,2.27222]
[1718982010056,0.98407771,3521.1,3520.7,2.726685]
[1718982010797,0.98407771,3521.1,3521.0,2.27208]
[1718982011080,0.98407771,3521.1,3520.7,2.27221]
[1718982011305,0.98407771,3521.1,3518.4,3.0]
[1718982011306,2.27246,3520.5,3519.7,2.27291]
[1718982011443,2.27226,3520.8,3520.1,2.27265]
[1718982011783,2.27265,3520.2,3519.4,2.7264]
[1718982011943,2.27264,3520.2,3519.5,2.27299]
[1718982012149,2.27277,3520.0,3519.5,2.7276]
[1718982012387,2.27277,3520.0,3519.6,2.27296]
[1718982012599,2.27277,3520.0,3519.1,5.11326]
[1718982012600,2.27284,3519.9,3519.1,2.84]
[1718982012746,2.27276,3520.0,3519.1,2.84]
[1718982012946,2.27298,3519.7,3519.1,0.760323]
[1718982013146,4.97921,3520.2,3519.1,2.27328]
[1718982013147,2.27299,3519.6,3519.1,2.27328]
[1718982013383,2.27305,3519.5,3519.1,2.27326]
[1718982013699,2.27312,3519.4,3518.8,2.2735]
[1718982013932,2.27312,3519.4,3518.9,2.27343]
[1718982014087,2.27299,3519.6,3518.7,2.7975279]
[1718982014283,2.27315,3519.4,3518.9,2.27343]
[1718982014539,2.27284,3519.9,3519.4,2.27311]
[1718982014849,2.27299,3519.6,3519.3,2.27317]
[1718982014980,2.27277,3520.0,3519.3,2.27317]
[1718982015182,2.27272,3520.0,3519.2,2.27318]
[1718982015387,2.27272,3520.0,3519.1,2.27329]
[1718982015388,2.27293,3519.7,3519.0,2.27337]
[1718982015628,2.27304,3519.6,3519.2,2.27323]
[1718982016033,2.27305,3519.5,3519.2,2.27323]
[1718982016201,2.27325,3519.2,3518.7,2.7975879]
[1718982016524,2.27325,3519.2,3518.2,2.27388]
[1718982016525,2.27342,3519.0,3518.2,2.27388]
[1718982016728,2.273,3519.6,3518.7,2.27354]
[1718982016886,2.27289,3519.8,3518.9,2.27337]
[1718982017211,2.27266,3520.1,3519.3,2.27317]
[1718982017402,2.27273,3520.0,3519.7,2.27287]
[1718982017846,3.0,3520.6,3519.4,0.227317]
[1718982017847,2.27234,3520.6,3520.0,2.27266]
[1718982018056,2.27241,3520.5,3519.7,2.27291]
[1718982018342,2.27253,3520.3,3519.8,2.27285]
[1718982018717,2.27241,3520.5,3520.0,2.27272]
[1718982019250,2.27241,3520.5,3519.8,2.27285]
[1718982019251,2.27254,3520.3,3519.8,2.27279]
[1718982019455,2.27256,3520.3,3519.9,2.27278]
[1718982019750,2.27229,3520.7,3520.1,2.27263]
[1718982019954,2.27208,3521.0,3520.5,2.2724]
[1718982020703,2.27208,3521.0,3520.3,2.27252]
[1718982020704,2.27187,3521.4,3520.9,2.27213]
[1718982021026,2.27188,3521.3,3520.7,2.27221]
[1718982021218,2.27197,3521.2,3520.8,2.2722]
[1718982021417,2.27201,3521.1,3520.7,2.27221]
[1718982021826,2.27201,3521.1,3520.8,2.27217]
[1718982022226,2.27196,3521.2,3520.8,2.27217]
[1718982023046,2.27195,3521.2,3520.7,2.27227]
[1718982023207,2.27202,3521.1,3520.5,2.27234]
[1718982023607,2.27214,3520.9,3520.4,2.27242]
[1718982023847,2.27183,3521.4,3520.2,2.27257]
[1718982023848,2.27233,3520.7,3520.2,2.27257]
[1718982024145,2.27245,3520.5,3519.4,2.27307]
[1718982024347,2.7191,3520.8,3519.6,2.27292]
[1718982024348,2.27279,3519.9,3519.6,2.27292]
[1718982024572,2.27268,3520.1,3519.7,2.27291]
[1718982025012,2.2726,3520.2,3519.7,2.27286]
[1718982025355,2.27267,3520.1,3519.7,2.727501]
[1718982025547,2.27273,3520.0,3519.5,2.27299]
[1718982026162,2.7191,3520.8,3519.1,4.37124]
[1718982026444,2.7191,3520.8,3519.9,2.27277]
[1718982026642,2.27242,3520.5,3519.9,2.27277]
[1718982026855,2.27259,3520.2,3519.9,2.27277]
[1718982027011,2.27259,3520.2,3519.7,2.27288]
[1718982027211,2.27272,3520.1,3519.7,2.27291]
[1718982027411,2.27272,3520.1,3519.8,2.27285]
[1718982027959,2.27253,3520.3,3519.9,2.27278]
[1718982027960,2.27257,3520.3,3519.9,2.27278]
[1718982028166,2.27234,3520.6,3520.0,0.227278]
[1718982028342,2.27234,3520.6,3520.3,2.27253]
[1718982028648,2.27224,3520.8,3520.4,2.27242]
[1718982028849,2.27224,3520.8,3520.2,2.27256]
[1718982028850,3.0,3520.8,3520.2,2.27256]
[1718982029361,1.9396,3520.2,3519.9,2.27277]
[1718982029526,2.27251,3520.4,3520.0,2.27272]
[1718982030309,2.27251,3520.4,3519.8,2.27285]
[1718982030546,2.27261,3520.2,3519.9,2.27278]
[1718982030772,2.27263,3520.2,3519.6,2.27297]
[1718982030911,2.27267,3520.1,3519.8,2.27284]
[1718982031560,2.27267,3520.1,3519.7,2.27292]
[1718982031846,2.27284,3519.9,3519.6,0.227297]
[1718982032055,2.27272,3520.0,3519.2,2.27324]
[1718982032350,2.27288,3519.8,3519.4,2.2731]
[1718982032724,2.27262,3520.2,3519.7,2.27291]
[1718982033055,2.27215,3520.9,3519.5,2.27303]
[1718982033353,2.7639776,3520.8,3520.4,2.2724]
[1718982033525,2.27211,3521.0,3520.6,2.27228]
[1718982033724,0.49170708,3520.9,3520.6,2.27228]
[1718982033957,2.27189,3521.3,3520.6,0.43172942]
[1718982034112,2.27189,3521.3,3520.9,2.27209]
[1718982034650,2.27189,3521.3,3521.0,2.27208]
[1718982035456,2.27193,3521.3,3520.2,2.27257]
[1718982035644,6.08042,3522.1,3520.1,2.27261]
[1718982035645,5.41925383,3521.2,3520.1,2.27261]
[1718982035952,4.92758,3521.2,3520.1,2.27261]
[1718982036152,0.49171141,3521.1,3520.4,2.27245]
[1718982036367,2.27234,3520.6,3519.8,4.96421]
[1718982036656,2.27232,3520.7,3520.3,2.27253]
[1718982036956,2.27228,3520.7,3519.9,2.27272]
[1718982037161,2.6556,3521.2,3520.1,2.27265]
[1718982037162,2.7641008,3520.6,3520.1,2.27265]
[1718982037455,2.7641008,3520.6,3519.5,2.84]
[1718982037456,0.49176845,3520.5,3519.6,2.55693]
[1718982037667,2.27236,3520.6,3519.9,2.27277]
[1718982037822,2.27252,3520.4,3520.0,2.27267]
[1718982038163,2.27252,3520.4,3520.1,2.27266]
[1718982038324,2.27215,3520.9,3520.1,0.454544]
[1718982038635,2.27235,3520.6,3520.3,2.27251]
[1718982039059,2.27226,3520.8,3520.4,2.27246]
[1718982039262,2.27226,3520.8,3520.1,0.454544]
[1718982039263,0.49175018,3520.7,3520.2,3.0385534]
[1718982039466,2.27213,3521.0,3520.5,2.2724]
[1718982039677,0.49172375,3520.9,3520.5,0.53109534]
[1718982039891,0.49172375,3520.9,3520.7,2.27222]
[1718982040083,0.49172375,3520.9,3520.8,4.54442]
[1718982040378,0.49172375,3520.9,3520.8,2.27221]
[1718982040769,2.27196,3521.2,3520.9,2.27214]
[1718982041264,2.27209,3521.0,3520.6,2.27233]
[1718982041436,2.27208,3521.0,3520.3,2.2725]
[1718982041782,2.27182,3521.4,3520.4,0.30384834]
[1718982041941,2.76355148,3521.3,3520.9,2.27209]
[1718982042144,0.49166148,3521.2,3520.9,2.27209]
[1718982042371,2.27189,3521.3,3521.0,2.27206]
[1718982042549,2.27183,3521.4,3521.1,2.27201]
[1718982042752,0.4916513,3521.3,3521.1,2.27201]
[1718982042984,2.27183,3521.4,3521.1,2.27201]
[1718982043151,2.27194,3521.3,3520.9,2.27209]
[1718982043675,5.27166,3521.7,3521.3,2.27188]
[1718982043676,2.2717,3521.6,3521.3,2.27188]
[1718982043925,2.2717,3521.6,3521.1,2.27196]
[1718982043926,1.79275317,3521.5,3521.1,2.27196]
[1718982044056,1.79275317,3521.4,3521.1,2.27196]
[1718982044384,1.30114176,3521.3,3521.1,2.27196]
[1718982044703,1.30114176,3521.2,3521.1,2.27196]
[1718982044866,1.30115366,3521.4,3521.2,2.27194]
[1718982045093,1.79278991,3521.3,3521.2,2.27194]
[1718982045284,1.79278578,3521.3,3521.2,2.27194]
[1718982045605,1.30114347,3521.3,3521.2,2.27194]
[1718982045806,2.098,3522.4,3521.2,2.27194]
[1718982045807,2.0791362,3522.0,3521.2,0.7497762]
[1718982045963,2.27129,3522.3,3521.9,2.27146]
[1718982046309,1.79237877,3522.2,3522.0,2.27142]
[1718982046597,1.79237877,3522.1,3521.9,2.27145]
[1718982046787,1.30084105,3522.0,3521.8,2.27156]
[1718982046964,2.27135,3522.2,3521.8,2.27156]
[1718982047166,1.7927512,3522.1,3521.8,2.27156]
[1718982047361,1.30122087,3522.0,3520.6,2.27233]
[1718982047606,6.53297,3522.6,3520.6,2.27233]
[1718982047607,1.79278324,3521.9,3521.2,2.27194]
[1718982047815,8.6121062,3522.6,3522.0,2.27143]
[1718982047816,2.27122,3522.4,3522.0,2.27143]
[1718982047968,1.79279055,3522.3,3522.1,2.27131]
[1718982048177,2.27112,3522.5,3522.1,2.27131]
[1718982048178,1.79279055,3522.2,3522.1,2.27131]
[1718982048381,1.79279055,3522.2,3522.1,6.81405]
[1718982048382,0.49154057,3522.2,3522.1,6.81405]
[1718982048613,5.27097,3522.8,3522.4,2.27116]
[1718982048900,4.06350727,3522.7,3522.4,2.27116]
[1718982049113,1.79252727,3522.6,3522.4,2.27116]
[1718982049318,1.30105411,3522.5,3522.4,2.27116]
[1718982049609,1.30105411,3522.5,3522.3,2.27123]
[1718982049905,1.30105411,3522.4,3522.3,2.27123]
[1718982050211,2.2711,3522.6,3522.3,2.27123]
[1718982050414,1.30124853,3522.5,3522.0,2.27137]
[1718982050585,3.57235853,3522.5,3522.2,2.2713]
[1718982050905,2.2712,3522.4,3522.1,2.27136]
[1718982051078,2.2712,3522.4,3521.9,2.27148]
[1718982051079,2.2712,3522.4,3522.0,2.27142]
[1718982051837,2.2712,3522.4,3522.1,2.27135]
[1718982052133,2.27124,3522.3,3522.0,2.27137]
[1718982052491,2.27148,3522.0,3521.6,2.27169]
[1718982052805,2.27137,3522.1,3521.6,2.27168]
[1718982053192,2.27137,3522.1,3521.7,2.27157]
[1718982053396,2.27144,3522.0,3521.7,2.27157]
[1718982053601,2.27138,3522.1,3521.7,2.27157]
[1718982053923,2.2713,3522.3,3521.9,2.27148]
[1718982054289,2.27132,3522.2,3521.9,2.27148]
[1718982055447,2.27102,3522.7,3521.9,2.27148]
[1718982055448,2.27111,3522.6,3521.9,2.27148]
[1718982055649,2.27119,3522.4,3522.1,2.27136]
[1718982055936,2.27131,3522.2,3521.9,2.27148]
[1718982056143,2.27138,3522.1,3521.8,2.27155]
[1718982056294,2.6799,3522.9,3521.2,2.677]
[1718982056295,2.27143,3522.0,3521.4,2.27182]
[1718982056494,2.2713,3522.2,3521.6,2.27163]
[1718982056495,2.27155,3521.9,3521.6,2.27163]
[1718982057712,2.27155,3521.9,3521.5,2.27175]
[1718982057713,2.27138,3522.1,3521.8,2.27154]
[1718982058258,2.27132,3522.2,3521.7,2.27162]
[1718982058615,2.2715,3521.9,3521.6,2.27168]
[1718982059409,2.27156,3521.8,3521.5,2.27175]
[1718982059655,2.2715,3521.9,3521.4,2.27181]
[1718982060035,2.2712,3522.4,3521.3,0.2677]
[1718982060210,1.86357004,3522.3,3521.2,2.27194]
[1718982060415,1.86357004,3522.3,3521.1,2.272]
[1718982060416,2.6242,3522.1,3521.1,2.272]
[1718982060642,2.27182,3521.4,3520.9,2.982878]
[1718982060816,2.27196,3521.2,3520.9,2.27213]
[1718982061016,2.27189,3521.3,3521.0,2.27206]
[1718982061515,2.272,3521.2,3520.8,2.27214]
[1718982061813,2.272,3521.2,3520.8,2.953818]
[1718982062221,2.2719,3521.3,3520.8,2.953818]
[1718982062763,2.27158,3521.8,3521.0,2.27208]
[1718982062974,1.86347261,3521.7,3520.9,2.27213]
[1718982063125,1.86347261,3521.6,3521.2,2.27188]
[1718982063328,1.86347261,3521.6,3520.6,2.2723]
[1718982063329,2.27138,3522.1,3521.7,2.27156]
[1718982063731,2.27138,3522.1,3521.8,2.27154]
[1718982064248,2.27143,3522.0,3521.7,2.27161]
[1718982064829,2.27138,3522.1,3521.8,2.27155]
[1718982065381,1.98791665,3523.2,3521.3,0.227188]
[1718982065382,5.07726087,3522.8,3521.9,0.33331317]
[1718982065680,4.1341703,3522.7,3522.1,2.27133]
[1718982065826,1.37172721,3522.6,3522.1,2.27133]
[1718982066281,2.2708,3523.0,3522.3,2.27123]
[1718982066572,2.27092,3522.8,3522.5,2.2711]
[1718982067380,4.54164,3523.0,3522.5,2.2711]
[1718982067660,2.27087,3522.9,3522.5,2.2211]
[1718982068028,2.2708,3523.0,3522.6,2.27101]
[1718982068233,2.27087,3522.9,3522.5,2.27109]
[1718982068644,2.27087,3522.9,3522.6,2.27104]
[1718982069264,2.27092,3522.8,3522.5,2.2711]
[1718982069483,2.2708,3523.0,3522.6,2.27104]
[1718982069684,2.27077,3523.1,3522.6,2.27104]
[1718982069685,0.49143689,3522.9,3522.6,2.27104]
[1718982069975,5.07494961,3523.6,3522.6,2.27104]
[1718982069976,2.27067,3523.2,3522.6,2.27104]
[1718982070183,2.27067,3523.2,3522.7,2.27098]
[1718982070184,2.76219194,3523.1,3522.7,2.27098]
[1718982070348,0.49142194,3523.0,3522.7,2.27098]
[1718982070532,2.27093,3522.8,3521.8,2.098]
[1718982070733,2.76246253,3522.7,3522.2,2.27125]
[1718982070961,2.27077,3523.1,3522.6,2.27104]
[1718982071167,2.76225891,3523.0,3522.5,2.2711]
[1718982071332,2.27091,3522.9,3522.5,2.2711]
[1718982071539,0.49143223,3522.9,3522.5,2.2711]
[1718982071768,2.76236223,3522.8,3522.5,2.2711]
[1718982071955,2.27088,3522.9,3522.2,2.2713]
[1718982072159,0.4914369,3522.8,3522.2,2.2713]
[1718982072475,2.27091,3522.9,3522.5,2.27105]
[1718982072635,0.4914296,3522.8,3522.6,2.27104]
[1718982072830,2.27092,3522.8,3522.5,2.27109]
[1718982073401,2.76242243,3522.7,3522.3,2.27123]
[1718982073675,2.27099,3522.7,3521.9,0.696227]
[1718982073886,2.27112,3522.5,3522.2,2.2713]
[1718982074063,2.27112,3522.5,3522.1,2.27136]
[1718982074434,2.27119,3522.4,3522.1,2.27136]
[1718982074890,2.27126,3522.3,3521.1,5.11195]
[1718982075034,2.27126,3522.3,3519.8,0.75]
[1718982075035,2.27172,3521.6,3520.3,2.6963]
[1718982075241,4.88898,3522.1,3520.3,2.6963]
[1718982075242,2.27193,3521.3,3520.9,2.27209]
[1718982075544,2.27213,3521.0,3520.5,2.2724]
[1718982075880,2.27213,3521.0,3520.7,2.27227]
[1718982075881,2.27208,3521.0,3520.7,2.27227]
[1718982077032,2.27195,3521.2,3520.7,2.27227]
[1718982077234,2.098,3521.6,3520.7,2.27227]
[1718982077235,5.07692944,3522.0,3521.6,2.27165]
[1718982077464,5.07692944,3522.0,3521.7,2.27161]
[1718982077465,1.86341015,3521.9,3521.7,2.27161]
[1718982077676,1.86341015,3521.9,3521.6,2.27165]
[1718982077677,0.49162029,3521.9,3521.6,2.27164]
[1718982077885,0.49162029,3521.9,3521.7,2.27161]
[1718982078074,0.49162029,3521.9,3521.8,4.54312]
[1718982079388,0.49162029,3521.9,3521.8,6.81468]
[1718982081048,0.49162029,3521.9,3521.8,9.08624]
[1718982081247,0.49162029,3521.9,3521.8,9.63624]
[1718982081443,0.49162029,3521.9,3521.8,10.8387163]
[1718982081689,0.16162029,3521.9,3521.8,10.8387163]
[1718982081992,2.2706,3523.3,3522.9,2.27081]
[1718982082161,1.37163347,3523.2,3522.8,2.27092]